{"text_format":"1","workbook":"xlsx","n_sheets":5,"sheets":["Arkusz1","Bombonierki","Arkusz2","Arkusz3","Arkusz4"],"not_rendered":{"charts":0,"images":0,"macros":1,"external_links":0,"defined_names":6,"comments":0,"pivot_tables":1},"unopened":[],"bounds":{"document_bytes":16777216,"sheet_cells":100000,"rows_first":2000,"rows_last":500,"rows_between":2000,"halvings":0,"cell_chars":16384,"cell_head_chars":4096},"cells_cut":0,"cells_raw":0,"read":"whole","date_system":"1900"}

{"sheet":"Arkusz1","index":0,"n_rows":13,"n_cols":5,"rows_kept":13,"cut":false,"hidden":false,"merged":[]}
["asdsa"]
[null,null,"WYKŁAD 11"]
[]
[null,null,1,"Tabele przestawne - zagadnienie odwrotne"]
[null,null,2,"Przykłady zadań egzaminacyjnych"]
[]
[null,null,"WYKŁAD 12"]
[null,null,null,"Programowanie obiektowe i zdarzeniowe"]
[null,null,null,"- formularze, elementy sterujące (formanty), właściwości i metody"]
[null,null,null,"- zdarzenia i procedury obsługi zdarzeń"]
[]
[null,null,null,null,"Element ListBox"]
[null,null,null,null,"właściwości: Value, RowSource, List,ListIndex"]

{"sheet":"Bombonierki","index":1,"n_rows":46,"n_cols":31,"rows_kept":46,"cut":false,"hidden":false,"merged":[[0,5,0,23]]}
[null,null,null,null,null,"NAZWA BOMBONIERKI I DATA WPROWADZENIA DO PRODUKCJI"]
[null,null,null,null,null,"2001-10-19","2006-05-04","2010-03-08","2005-08-17","2001-09-05","2001-10-24","2006-02-15","2000-05-26","2010-06-06","2010-12-13","2004-02-11","2009-03-08","2002-09-08","2000-09-08","2002-02-18","2007-02-23","2008-06-12","2007-04-03","2005-12-04"]
["Nazwa czekoladki","Typ nadzienia","Typ czekolady","Typ orzechów","Koszt czekoladki","Bogactwo Pacyfiku","Cztery pory roku","Fantazja karmelowej mokki","Kolekcja alpejska","Kolekcja jesienna","Kolekcja romantyczna","Kolekcja wyspowa","Kolekcja zachodniego wiatru","Marcepanowe cuda","Międzynarodowe","Naj-naj-naj","Serca kochanków","Słodki krem","Słodkie i gorzkie","Słodko-gorzkie","Smakołyki z masłem orzechowym","Wiśnie klasyczne","Wspaniałe orzechy laskowe","Zima",null,null,null,null,{"$f":"Tabela_Kwerenda_z_MS_Access_Database3[[#Headers],[Marcepanowe cuda]]","v":"Marcepanowe cuda"}]
["Ambrozja migdałowa","Likier migdałowy","Ciemna","Migdał",0.44,3,null,null,null,null,3,null,null,null,null,null,null,null,null,null,null,null,null,null,null,"Bogactwo Pacyfiku",{"$f":"TRANSPOSE(F3:X3)","v":"Bogactwo Pacyfiku"},null,{"$f":"wypisz_czekoladki(AC3,bombonierka,czekoladka,Ilość)","v":"Jaskółka marcepanowa"},3]
["Biała lilia","Bez nadz.","Biała","Bez orz.",0.27,3,null,null,null,null,null,6,4,null,null,null,null,null,null,null,null,null,null,null,null,"Cztery pory roku","Cztery pory roku",null,"Marcepanowe cudo",3]
["Brazylijskie doskonałe","Bez nadz.","Biała","Brazylijski",0.28000000000000003,null,null,null,null,null,null,null,null,null,6,2,null,null,null,null,null,null,null,null,null,"Fantazja karmelowej mokki","Fantazja karmelowej mokki",null,"Marcepanowy liść dębu",3]
["Czarna jagoda","Borówka amerykańska","Kremowo-kawowa","Bez orz.",0.25,null,2,null,4,null,null,null,null,null,null,null,null,null,2,5,null,null,null,null,null,"Kolekcja alpejska","Kolekcja alpejska",null,"Marcepanowy liść klonu",3]
["Doskonała mieszanka orzechowa","Bez nadz.","Mleczna","Mielone różne",0.4,null,null,null,null,null,null,null,null,null,null,2,null,null,null,null,null,null,null,null,null,"Kolekcja jesienna","Kolekcja jesienna",null,"Marcepanowy słowik",3]
["Doskonałe orzechy pistacjowe","Bez nadz.","Mleczna","Pistacjowy",0.3,null,null,null,null,null,null,null,null,null,null,2,null,null,null,null,null,null,null,null,null,"Kolekcja romantyczna","Kolekcja romantyczna",null,"Smakołyk marcepanowy",3]
["Gorzka z orzechami laskowymi","Bez nadz.","Słodko-gorzka","Laskowy",0.24,null,null,null,null,null,null,null,null,null,null,null,null,null,null,null,null,null,3,null,null,"Kolekcja wyspowa","Kolekcja wyspowa",null,0,0]
["Jabłko Amora","Bez nadz.","Mleczna","Migdał",0.24,null,null,null,null,null,3,null,null,null,null,null,null,null,null,null,null,null,null,null,null,"Kolekcja zachodniego wiatru","Kolekcja zachodniego wiatru",null,0,0]
["Jaskółka marcepanowa","Marcepan","Biała","Bez orz.",0.34,null,null,null,null,6,null,null,4,3,null,null,null,null,null,null,null,null,null,null,null,"Marcepanowe cuda","Marcepanowe cuda",null,0,0]
["Kiwi czekoladowe","Bez nadz.","Ciemna","Brazylijski",0.28999999999999998,null,null,null,null,null,null,6,null,null,6,null,null,null,null,null,null,null,null,null,null,"Międzynarodowe","Międzynarodowe",null,0,0]
["Laskowe orzechy doskonałe","Bez nadz.","Ciemna","Laskowy",0.21,null,null,null,null,null,null,null,null,null,null,2,null,null,null,null,null,null,2,null,null,"Naj-naj","Naj-naj-naj",null,0,0]
["Likier migdałowy z orzechami laskowymi","Likier migdałowy","Mleczna","Laskowy",0.36,3,null,null,null,null,null,null,null,null,null,null,null,null,null,null,null,null,null,null,null,"Serca kochanków","Serca kochanków",null,0,0]
["Malina słodko-gorzka","Malina","Słodko-gorzka","Bez orz.",0.25,null,2,null,null,null,null,null,null,null,null,null,null,null,3,5,null,null,null,3,null,"Słodki krem","Słodki krem",null,0,0]
["Marcepanowe cudo","Marcepan","Mleczna","Bez orz.",0.33,null,null,null,null,null,null,null,null,3,null,null,null,null,null,null,null,null,3,null,null,"Słodkie i gorzkie","Słodkie i gorzkie",null,0,0]
["Marcepanowy liść dębu","Marcepan","Słodko-gorzka","Bez orz.",0.4,null,null,null,null,6,null,null,null,3,null,null,null,null,null,null,null,null,null,null,null,"Słodko-gorzkie","Słodko-gorzkie",null,0,0]
["Marcepanowy liść klonu","Marcepan","Mleczna","Bez orz.",0.37,null,null,null,null,6,null,6,null,3,null,null,null,null,null,null,null,null,null,null,null,"Smakołyki z masłem orzechowym","Smakołyki z masłem orzechowym",null,0,0]
["Marcepanowy słowik","Marcepan","Mleczna","Bez orz.",0.32,null,null,null,null,6,null,null,4,3,null,null,null,null,null,null,null,null,null,null,null,"Wiśnie klasyczne","Wiśnie klasyczne",null,0,0]
["Marmolada słodko-gorzka","Marmolada","Słodko-gorzka","Bez orz.",0.17,null,null,null,null,null,null,null,null,null,null,null,null,null,3,5,null,null,null,null,null,"Wspaniałe orzechy laskowe","Wspaniałe orzechy laskowe",null,0,0]
["Migdały doskonałe","Bez nadz.","Ciemna","Migdał",0.3,null,null,null,null,null,null,null,null,null,null,2,null,null,null,null,null,null,null,null,null,"Zima","Zima",null,0,0]
["Mokka kremowa z orzechami pistacjowymi","Mokka kremowa","Karmel","Pistacjowy",0.21,null,null,4,null,null,null,null,null,null,null,null,null,null,null,null,null,null,null,3,null,null,null,null,0,0]
["Mokka kremowa z orzechami włoskimi","Mokka kremowa","Karmel","Włoski",0.19,null,null,9,null,null,null,null,null,null,null,null,null,null,null,null,null,null,null,3,null,null,null,null,0,0]
["Mokka z orzechami laskowymi","Mokka kremowa","Mleczna","Laskowy",0.33,3]
["Nerkowce doskonałe","Bez nadz.","Ciemna","Nerkowiec",0.33,null,null,null,null,null,null,null,null,null,null,2,null,null,null,null,null,null,null,3]
["Niezapominajka","Borówka amerykańska","Mleczna","Bez orz.",0.19,null,null,null,null,null,3,null,4,null,null,null,null,null,null,null,null,null,null,null,null,null,null,null,"Ilość czekoladek ",5]
["Palma tropikalna","Kokos","Mleczna","Bez orz.",0.23,null,null,null,null,null,null,6,null,null,6,null,null,null,null,null,null,null,2,null,null,null,null,null,{"$f":"WyszukajDanezTabeli(AD27,czekoladka,bombonierka,Ilość)","v":"Czarna jagoda"},"Słodko-gorzkie",5]
["Piękna Murzynka","Bez nadz.","Ciemna","Bez orz.",0.24,null,null,null,null,null,3,null,4,null,6,null,null,null,null,null,null,null,null,null,null,null,null,null,"Malina słodko-gorzka","Słodko-gorzkie",5]
["Serce kochanka","Wiśnia krem","Mleczna","Bez orz.",0.25,null,null,null,null,null,3,null,null,null,null,null,4,6,null,null,null,null,null,null,null,null,null,null,"Marmolada słodko-gorzka","Słodko-gorzkie",5]
["Serce na dłoni","Wiśnia krem","Ciemna","Bez orz.",0.32,null,null,null,null,null,3,null,null,null,null,null,4,null,null,null,null,null,null,null,null,null,null,null,"Truskawka słodka","Kolekcja alpejska",5]
["Słodka borówka","Borówka amerykańska","Mleczna","Bez orz.",0.25,null,2,null,4,null,null,null,null,null,null,null,null,null,2,null,null,null,null,null,null,null,null,null,"Truskawka słodko-gorzka","Kolekcja alpejska",5]
["Słodka malina","Malina","Mleczna","Bez orz.",0.26,null,2,null,null,null,null,null,null,null,null,null,null,null,2,null,null,null,null,null,null,null,null,null,"Truskawka słodko-gorzka","Słodko-gorzkie",5]
["Słodka marmoladka","Marmolada","Mleczna","Bez orz.",0.18,null,null,null,null,null,null,null,null,null,null,null,null,null,2,null,null,null,null,null,null,null,null,null,0,0,0]
["Słodka wiśnia","Wiśnia, cała","Mleczna","Bez orz.",0.27,null,null,null,null,null,null,null,null,null,null,null,null,null,2,null,null,4,null,null,null,null,null,null,0,0,0]
["Smakołyk marcepanowy","Marcepan","Ciemna","Bez orz.",0.38,null,null,null,null,null,null,null,null,3,null,null,null,null,null,null,null,null,null,null,null,null,null,null,0,0,0]
["Smakołyk z masłem orzechowym","Masło orzechowe","Mleczna","Bez orz.",0.21,null,null,null,null,null,null,null,null,null,null,null,null,6,null,null,18,null,null,null,null,null,null,null,0,0,0]
["Truskawka słodka","Truskawka","Mleczna","Bez orz.",0.2,null,2,null,5,null,null,null,null,null,null,null,null,null,2,null,null,null,null,null,null,null,null,null,0,0,0]
["Truskawka słodko-gorzka","Truskawka","Słodko-gorzka","Bez orz.",0.23,null,2,null,5,null,null,null,null,null,null,null,null,null,3,5,null,null,null,3,null,null,null,null,0,0,0]
["Wieczorne uniesienie","Mokka krem","Kremowo-kawowa","Brazylijskie",0.3,null,null,null,null,null,3,null,4,null,null,null,null,6,null,null,null,null,null,null,null,null,null,null,0,0,0]
["Wiśnia klasyczna","Wiśnia, cała","Ciemna","Bez orz.",0.28000000000000003,null,null,null,null,null,null,null,null,null,null,null,null,null,null,null,null,4,null,3,null,null,null,null,0,0,0]
["Wiśnia słodko-gorzka","Wiśnia, cała","Słodko-gorzka","Bez orz.",0.26,null,null,null,null,null,null,null,null,null,null,null,null,null,3,4,null,4,null,null,null,null,null,null,0,0,0]
["Wiśnia z orzechami laskowymi","Wiśnia krem","Mleczna","Laskowy",0.26,null,null,null,null,null,null,null,null,null,null,null,null,null,null,null,null,null,2,null,null,null,null,null,0,0,0]
["Złamane serce","Bez nadz.","Biała","Pekan",0.3,null,null,null,null,null,3,null,null,null,null,null,4,null,null,null,null,null,null,null,null,null,null,null,0,0,0]
[null,null,null,null,null,{"$f":"SUM(F4:F44)","v":12},{"$f":"SUM(G4:G44)","v":12},13,18,24,24,24,24,18,24,12,12,18,24,24,18,12,12,18,null,null,null,null,0,0,0]
[null,null,null,null,null,{"$f":"ilość_czekoladek_w_bomb(F3,bombonierka,Ilość)","v":12},12,13,18,24,24,24,24,18,24,12,12,18,24,24,18,12,12,18]

{"sheet":"Arkusz2","index":2,"n_rows":91,"n_cols":25,"rows_kept":91,"cut":false,"hidden":false,"merged":[]}
["bombonierka","czekoladka","ilość"]
["Bogactwo Pacyfiku","Ambrozja migdałowa",3,null,null,"Suma z ilość","bombonierka"]
["Bogactwo Pacyfiku","Biała lilia",3,null,null,"czekoladka","Bogactwo Pacyfiku","Cztery pory roku","Fantazja karmelowej mokki","Kolekcja alpejska","Kolekcja jesienna","Kolekcja romantyczna","Kolekcja wyspowa","Kolekcja zachodniego wiatru","Marcepanowe cuda","Międzynarodowe","Naj-naj","Serca kochanków","Słodki krem","Słodkie i gorzkie","Słodko-gorzkie","Smakołyki z masłem orzechowym","Wiśnie klasyczne","Wspaniałe orzechy laskowe","Zima"]
["Bogactwo Pacyfiku","Likier migdałowy z orzechami laskowymi",3,null,null,"Ambrozja migdałowa",3,null,null,null,null,3]
["Bogactwo Pacyfiku","Mokka z orzechami laskowymi",3,null,null,"Biała lilia",3,null,null,null,null,null,6,4]
["Cztery pory roku","Czarna jagoda",2,null,null,"Brazylijskie doskonałe",null,null,null,null,null,null,null,null,null,6,2]
["Cztery pory roku","Malina słodko-gorzka",2,null,null,"Czarna jagoda",null,2,null,4,null,null,null,null,null,null,null,null,null,2,5]
["Cztery pory roku","Słodka borówka",2,null,null,"Doskonała mieszanka orzechowa",null,null,null,null,null,null,null,null,null,null,2]
["Cztery pory roku","Słodka malina",2,null,null,"Doskonałe orzechy pistacjowe",null,null,null,null,null,null,null,null,null,null,2]
["Cztery pory roku","Truskawka słodka",2,null,null,"Gorzka z orzechami laskowymi",null,null,null,null,null,null,null,null,null,null,null,null,null,null,null,null,null,3]
["Cztery pory roku","Truskawka słodko-gorzka",2,null,null,"Jabłko Amora",null,null,null,null,null,3]
["Fantazja karmelowej mokki","Mokka kremowa z orzechami pistacjowymi",4,null,null,"Jaskółka marcepanowa",null,null,null,null,6,null,null,4,3]
["Fantazja karmelowej mokki","Mokka kremowa z orzechami włoskimi",9,null,null,"Kiwi czekoladowe",null,null,null,null,null,null,6,null,null,6]
["Kolekcja alpejska","Czarna jagoda",4,null,null,"Laskowe orzechy doskonałe",null,null,null,null,null,null,null,null,null,null,2,null,null,null,null,null,null,2]
["Kolekcja alpejska","Słodka borówka",4,null,null,"Likier migdałowy z orzechami laskowymi",3]
["Kolekcja alpejska","Truskawka słodka",5,null,null,"Malina słodko-gorzka",null,2,null,null,null,null,null,null,null,null,null,null,null,3,5,null,null,null,3]
["Kolekcja alpejska","Truskawka słodko-gorzka",5,null,null,"Marcepanowe cudo",null,null,null,null,null,null,null,null,3,null,null,null,null,null,null,null,null,3]
["Kolekcja jesienna","Jaskółka marcepanowa",6,null,null,"Marcepanowy liść dębu",null,null,null,null,6,null,null,null,3]
["Kolekcja jesienna","Marcepanowy liść dębu",6,null,null,"Marcepanowy liść klonu",null,null,null,null,6,null,6,null,3]
["Kolekcja jesienna","Marcepanowy liść klonu",6,null,null,"Marcepanowy słowik",null,null,null,null,6,null,null,4,3]
["Kolekcja jesienna","Marcepanowy słowik",6,null,null,"Marmolada słodko-gorzka",null,null,null,null,null,null,null,null,null,null,null,null,null,3,5]
["Kolekcja romantyczna","Ambrozja migdałowa",3,null,null,"Migdały doskonałe",null,null,null,null,null,null,null,null,null,null,2]
["Kolekcja romantyczna","Jabłko Amora",3,null,null,"Mokka kremowa z orzechami pistacjowymi",null,null,4,null,null,null,null,null,null,null,null,null,null,null,null,null,null,null,3]
["Kolekcja romantyczna","Niezapominajka",3,null,null,"Mokka kremowa z orzechami włoskimi",null,null,9,null,null,null,null,null,null,null,null,null,null,null,null,null,null,null,3]
["Kolekcja romantyczna","Piękna Murzynka",3,null,null,"Mokka z orzechami laskowymi",3]
["Kolekcja romantyczna","Serce kochanka",3,null,null,"Nerkowce doskonałe",null,null,null,null,null,null,null,null,null,null,2,null,null,null,null,null,null,null,3]
["Kolekcja romantyczna","Serce na dłoni",3,null,null,"Niezapominajka",null,null,null,null,null,3,null,4]
["Kolekcja romantyczna","Wieczorne uniesienie",3,null,null,"Palma tropikalna",null,null,null,null,null,null,6,null,null,6,null,null,null,null,null,null,null,2]
["Kolekcja romantyczna","Złamane serce",3,null,null,"Piękna Murzynka",null,null,null,null,null,3,null,4,null,6]
["Kolekcja wyspowa","Biała lilia",6,null,null,"Serce kochanka",null,null,null,null,null,3,null,null,null,null,null,4,6]
["Kolekcja wyspowa","Kiwi czekoladowe",6,null,null,"Serce na dłoni",null,null,null,null,null,3,null,null,null,null,null,4]
["Kolekcja wyspowa","Marcepanowy liść klonu",6,null,null,"Słodka borówka",null,2,null,4,null,null,null,null,null,null,null,null,null,2]
["Kolekcja wyspowa","Palma tropikalna",6,null,null,"Słodka malina",null,2,null,null,null,null,null,null,null,null,null,null,null,2]
["Kolekcja zachodniego wiatru","Biała lilia",4,null,null,"Słodka marmoladka",null,null,null,null,null,null,null,null,null,null,null,null,null,2]
["Kolekcja zachodniego wiatru","Jaskółka marcepanowa",4,null,null,"Słodka wiśnia",null,null,null,null,null,null,null,null,null,null,null,null,null,2,null,null,4]
["Kolekcja zachodniego wiatru","Marcepanowy słowik",4,null,null,"Smakołyk marcepanowy",null,null,null,null,null,null,null,null,3]
["Kolekcja zachodniego wiatru","Niezapominajka",4,null,null,"Smakołyk z masłem orzechowym",null,null,null,null,null,null,null,null,null,null,null,null,6,null,null,18]
["Kolekcja zachodniego wiatru","Piękna Murzynka",4,null,null,"Truskawka słodka",null,2,null,5,null,null,null,null,null,null,null,null,null,2]
["Kolekcja zachodniego wiatru","Wieczorne uniesienie",4,null,null,"Truskawka słodko-gorzka",null,2,null,5,null,null,null,null,null,null,null,null,null,3,5,null,null,null,3]
["Marcepanowe cuda","Jaskółka marcepanowa",3,null,null,"Wieczorne uniesienie",null,null,null,null,null,3,null,4,null,null,null,null,6]
["Marcepanowe cuda","Marcepanowe cudo",3,null,null,"Wiśnia klasyczna",null,null,null,null,null,null,null,null,null,null,null,null,null,null,null,null,4,null,3]
["Marcepanowe cuda","Marcepanowy liść dębu",3,null,null,"Wiśnia słodko-gorzka",null,null,null,null,null,null,null,null,null,null,null,null,null,3,4,null,4]
["Marcepanowe cuda","Marcepanowy liść klonu",3,null,null,"Wiśnia z orzechami laskowymi",null,null,null,null,null,null,null,null,null,null,null,null,null,null,null,null,null,2]
["Marcepanowe cuda","Marcepanowy słowik",3,null,null,"Złamane serce",null,null,null,null,null,3,null,null,null,null,null,4]
["Marcepanowe cuda","Smakołyk marcepanowy",3]
["Międzynarodowe","Brazylijskie doskonałe",6]
["Międzynarodowe","Kiwi czekoladowe",6]
["Międzynarodowe","Palma tropikalna",6]
["Międzynarodowe","Piękna Murzynka",6]
["Naj-naj","Brazylijskie doskonałe",2]
["Naj-naj","Doskonała mieszanka orzechowa",2]
["Naj-naj","Doskonałe orzechy pistacjowe",2]
["Naj-naj","Laskowe orzechy doskonałe",2]
["Naj-naj","Migdały doskonałe",2]
["Naj-naj","Nerkowce doskonałe",2]
["Serca kochanków","Serce kochanka",4]
["Serca kochanków","Serce na dłoni",4]
["Serca kochanków","Złamane serce",4]
["Słodki krem","Serce kochanka",6]
["Słodki krem","Smakołyk z masłem orzechowym",6]
["Słodki krem","Wieczorne uniesienie",6]
["Słodkie i gorzkie","Czarna jagoda",2]
["Słodkie i gorzkie","Malina słodko-gorzka",3]
["Słodkie i gorzkie","Marmolada słodko-gorzka",3]
["Słodkie i gorzkie","Słodka borówka",2]
["Słodkie i gorzkie","Słodka malina",2]
["Słodkie i gorzkie","Słodka marmoladka",2]
["Słodkie i gorzkie","Słodka wiśnia",2]
["Słodkie i gorzkie","Truskawka słodka",2]
["Słodkie i gorzkie","Truskawka słodko-gorzka",3]
["Słodkie i gorzkie","Wiśnia słodko-gorzka",3]
["Słodko-gorzkie","Czarna jagoda",5]
["Słodko-gorzkie","Malina słodko-gorzka",5]
["Słodko-gorzkie","Marmolada słodko-gorzka",5]
["Słodko-gorzkie","Truskawka słodko-gorzka",5]
["Słodko-gorzkie","Wiśnia słodko-gorzka",4]
["Smakołyki z masłem orzechowym","Smakołyk z masłem orzechowym",18]
["Wiśnie klasyczne","Słodka wiśnia",4]
["Wiśnie klasyczne","Wiśnia klasyczna",4]
["Wiśnie klasyczne","Wiśnia słodko-gorzka",4]
["Wspaniałe orzechy laskowe","Gorzka z orzechami laskowymi",3]
["Wspaniałe orzechy laskowe","Laskowe orzechy doskonałe",2]
["Wspaniałe orzechy laskowe","Marcepanowe cudo",3]
["Wspaniałe orzechy laskowe","Palma tropikalna",2]
["Wspaniałe orzechy laskowe","Wiśnia z orzechami laskowymi",2]
["Zima","Malina słodko-gorzka",3]
["Zima","Mokka kremowa z orzechami pistacjowymi",3]
["Zima","Mokka kremowa z orzechami włoskimi",3]
["Zima","Nerkowce doskonałe",3]
["Zima","Truskawka słodko-gorzka",3]
["Zima","Wiśnia klasyczna",3]

{"sheet":"Arkusz3","index":3,"n_rows":91,"n_cols":3,"rows_kept":91,"cut":false,"hidden":false,"merged":[]}
[]
["Bogactwo Pacyfiku","Ambrozja migdałowa",3]
["Bogactwo Pacyfiku","Biała lilia",3]
["Bogactwo Pacyfiku","Likier migdałowy z orzechami laskowymi",3]
["Bogactwo Pacyfiku","Mokka z orzechami laskowymi",3]
["Cztery pory roku","Czarna jagoda",2]
["Cztery pory roku","Malina słodko-gorzka",2]
["Cztery pory roku","Słodka borówka",2]
["Cztery pory roku","Słodka malina",2]
["Cztery pory roku","Truskawka słodka",2]
["Cztery pory roku","Truskawka słodko-gorzka",2]
["Fantazja karmelowej mokki","Mokka kremowa z orzechami pistacjowymi",4]
["Fantazja karmelowej mokki","Mokka kremowa z orzechami włoskimi",9]
["Kolekcja alpejska","Czarna jagoda",4]
["Kolekcja alpejska","Słodka borówka",4]
["Kolekcja alpejska","Truskawka słodka",5]
["Kolekcja alpejska","Truskawka słodko-gorzka",5]
["Kolekcja jesienna","Jaskółka marcepanowa",6]
["Kolekcja jesienna","Marcepanowy liść dębu",6]
["Kolekcja jesienna","Marcepanowy liść klonu",6]
["Kolekcja jesienna","Marcepanowy słowik",6]
["Kolekcja romantyczna","Ambrozja migdałowa",3]
["Kolekcja romantyczna","Jabłko Amora",3]
["Kolekcja romantyczna","Niezapominajka",3]
["Kolekcja romantyczna","Piękna Murzynka",3]
["Kolekcja romantyczna","Serce kochanka",3]
["Kolekcja romantyczna","Serce na dłoni",3]
["Kolekcja romantyczna","Wieczorne uniesienie",3]
["Kolekcja romantyczna","Złamane serce",3]
["Kolekcja wyspowa","Biała lilia",6]
["Kolekcja wyspowa","Kiwi czekoladowe",6]
["Kolekcja wyspowa","Marcepanowy liść klonu",6]
["Kolekcja wyspowa","Palma tropikalna",6]
["Kolekcja zachodniego wiatru","Biała lilia",4]
["Kolekcja zachodniego wiatru","Jaskółka marcepanowa",4]
["Kolekcja zachodniego wiatru","Marcepanowy słowik",4]
["Kolekcja zachodniego wiatru","Niezapominajka",4]
["Kolekcja zachodniego wiatru","Piękna Murzynka",4]
["Kolekcja zachodniego wiatru","Wieczorne uniesienie",4]
["Marcepanowe cuda","Jaskółka marcepanowa",3]
["Marcepanowe cuda","Marcepanowe cudo",3]
["Marcepanowe cuda","Marcepanowy liść dębu",3]
["Marcepanowe cuda","Marcepanowy liść klonu",3]
["Marcepanowe cuda","Marcepanowy słowik",3]
["Marcepanowe cuda","Smakołyk marcepanowy",3]
["Międzynarodowe","Brazylijskie doskonałe",6]
["Międzynarodowe","Kiwi czekoladowe",6]
["Międzynarodowe","Palma tropikalna",6]
["Międzynarodowe","Piękna Murzynka",6]
["Naj-naj","Brazylijskie doskonałe",2]
["Naj-naj","Doskonała mieszanka orzechowa",2]
["Naj-naj","Doskonałe orzechy pistacjowe",2]
["Naj-naj","Laskowe orzechy doskonałe",2]
["Naj-naj","Migdały doskonałe",2]
["Naj-naj","Nerkowce doskonałe",2]
["Serca kochanków","Serce kochanka",4]
["Serca kochanków","Serce na dłoni",4]
["Serca kochanków","Złamane serce",4]
["Słodki krem","Serce kochanka",6]
["Słodki krem","Smakołyk z masłem orzechowym",6]
["Słodki krem","Wieczorne uniesienie",6]
["Słodkie i gorzkie","Czarna jagoda",2]
["Słodkie i gorzkie","Malina słodko-gorzka",3]
["Słodkie i gorzkie","Marmolada słodko-gorzka",3]
["Słodkie i gorzkie","Słodka borówka",2]
["Słodkie i gorzkie","Słodka malina",2]
["Słodkie i gorzkie","Słodka marmoladka",2]
["Słodkie i gorzkie","Słodka wiśnia",2]
["Słodkie i gorzkie","Truskawka słodka",2]
["Słodkie i gorzkie","Truskawka słodko-gorzka",3]
["Słodkie i gorzkie","Wiśnia słodko-gorzka",3]
["Słodko-gorzkie","Czarna jagoda",5]
["Słodko-gorzkie","Malina słodko-gorzka",5]
["Słodko-gorzkie","Marmolada słodko-gorzka",5]
["Słodko-gorzkie","Truskawka słodko-gorzka",5]
["Słodko-gorzkie","Wiśnia słodko-gorzka",4]
["Smakołyki z masłem orzechowym","Smakołyk z masłem orzechowym",18]
["Wiśnie klasyczne","Słodka wiśnia",4]
["Wiśnie klasyczne","Wiśnia klasyczna",4]
["Wiśnie klasyczne","Wiśnia słodko-gorzka",4]
["Wspaniałe orzechy laskowe","Gorzka z orzechami laskowymi",3]
["Wspaniałe orzechy laskowe","Laskowe orzechy doskonałe",2]
["Wspaniałe orzechy laskowe","Marcepanowe cudo",3]
["Wspaniałe orzechy laskowe","Palma tropikalna",2]
["Wspaniałe orzechy laskowe","Wiśnia z orzechami laskowymi",2]
["Zima","Malina słodko-gorzka",3]
["Zima","Mokka kremowa z orzechami pistacjowymi",3]
["Zima","Mokka kremowa z orzechami włoskimi",3]
["Zima","Nerkowce doskonałe",3]
["Zima","Truskawka słodko-gorzka",3]
["Zima","Wiśnia klasyczna",3]

{"sheet":"Arkusz4","index":4,"n_rows":22,"n_cols":2,"rows_kept":22,"cut":false,"hidden":false,"merged":[]}
["LISTA","WYBRANO"]
["Styczeń"]
["Luty"]
["Marzec"]
["Kwiecień"]
["Maj"]
["Czerwiec"]
["Lipiec"]
["Sierpień"]
["Wrzesień"]
["Październik"]
["Listopad"]
["Grudzień"]
[]
["LISTA","WYBRANO"]
[{"$f":"YEAR(NOW())","v":2016},2016]
[{"$f":"A16+1","v":2017}]
[2018]
[2019]
[2020]
[2021]
[2022]